Workbook

Sheet Panel
C3: BALANCE DE PÉRDIDAS Y GANANCIAS | H3: Margen bruto actual [L/J] | I3: Para el mes que finaliza el 31/8
C4: CELULAR SATCOM | H4: Rentabilidad de ventas actual [T/J] | I4: Expresado en millares
C6: No modifique las categorías de esta hoja de cálculo porque podrían producirse errores de fórmulas. Use la hoja de cálculo Categorías para agregar categorías y actualice las hojas de cálculo correspondientes con entradas. Esta hoja de cálculo se actualizará automáticamente.
C8: Resumen | D8: Total período anterior | E8: Total presupuesto | F8: Total período actual | G8: Total actual período como % de ventas | H8: % de cambio total del período anterior | I8: % de cambio total del presupuesto
C9: Total de ingresos por ventas [J] | D9: =SUMIFS(IngresosPorVentas[Antes período],IngresosPorVentas[Tipo de ingreso],"Ingresos por ventas") -> 100.00 € | E9: =SUMIFS(IngresosPorVentas[Presupuesto],IngresosPorVentas[Tipo de ingreso],"Ingresos por ventas") -> 101.00 € | F9: =SUMIFS(IngresosPorVentas[Actual período],IngresosPorVentas[Tipo de ingreso],"Ingresos por ventas") -> 100.00 € | G9: =SUMIFS(IngresosPorVentas[Período actual como % de ventas],IngresosPorVentas[Tipo de ingreso],"Ingresos por ventas") -> 100.00% | H9: =SUMIFS(IngresosPorVentas[Porcentaje de cambio desde período anterior],IngresosPorVentas[Tipo de ingreso],"Ingresos por ventas") -> -0.00% | I9: =SUMIFS(IngresosPorVentas[% de cambio del presupuesto],IngresosPorVentas[Tipo de ingreso],"Ingresos por ventas") -> 395.00%
C10: Costo total de ventas [K] | D10: =SUMIFS(IngresosPorVentas[Antes período],IngresosPorVentas[Tipo de ingreso],"Costo de ventas") -> -25.00 € | E10: =SUMIFS(IngresosPorVentas[Presupuesto],IngresosPorVentas[Tipo de ingreso],"Costo de ventas") -> -50.00 € | F10: =SUMIFS(IngresosPorVentas[Actual período],IngresosPorVentas[Tipo de ingreso],"Costo de ventas") -> -55.00 € | G10: =SUMIFS(IngresosPorVentas[Período actual como % de ventas],IngresosPorVentas[Tipo de ingreso],"Costo de ventas") -> -55.00% | H10: =SUMIFS(IngresosPorVentas[Porcentaje de cambio desde período anterior],IngresosPorVentas[Tipo de ingreso],"Costo de ventas") -> -120.00% | I10: =SUMIFS(IngresosPorVentas[% de cambio del presupuesto],IngresosPorVentas[Tipo de ingreso],"Costo de ventas") -> -10.00%
C11: Total de ventas y gastos de marketing [M] | D11: =SUMIFS(GastosOperativos[Antes período],GastosOperativos[Tipo de gasto],"Ventas y marketing") -> 30.00 € | E11: =SUMIFS(GastosOperativos[Presupuesto],GastosOperativos[Tipo de gasto],"Ventas y marketing") -> 35.00 € | F11: =SUMIFS(GastosOperativos[Actual período],GastosOperativos[Tipo de gasto],"Ventas y marketing") -> 45.00 € | G11: =SUMIFS(GastosOperativos[Período actual como % de ventas],GastosOperativos[Tipo de gasto],"Ventas y marketing") -> 45.00% | H11: =SUMIFS(GastosOperativos[Porcentaje de cambio desde período anterior],GastosOperativos[Tipo de gasto],"Ventas y marketing") -> 50.00% | I11: =SUMIFS(GastosOperativos[% de cambio del presupuesto],GastosOperativos[Tipo de gasto],"Ventas y marketing") -> 28.57%
C12: Total de gastos en investigación y desarrollo [N] | D12: =SUMIFS(GastosOperativos[Antes período],GastosOperativos[Tipo de gasto],"Investigación y desarrollo") -> 0.00 € | E12: =SUMIFS(GastosOperativos[Presupuesto],GastosOperativos[Tipo de gasto],"Investigación y desarrollo") -> 0.00 € | F12: =SUMIFS(GastosOperativos[Actual período],GastosOperativos[Tipo de gasto],"Investigación y desarrollo") -> 0.00 € | G12: =SUMIFS(GastosOperativos[Período actual como % de ventas],GastosOperativos[Tipo de gasto],"Investigación y desarrollo") -> 0.00% | H12: =SUMIFS(GastosOperativos[Porcentaje de cambio desde período anterior],GastosOperativos[Tipo de gasto],"Investigación y desarrollo") -> 0.00% | I12: =SUMIFS(GastosOperativos[% de cambio del presupuesto],GastosOperativos[Tipo de gasto],"Investigación y desarrollo") -> 0.00%
C13: Total de gastos generales y administrativos [O] | D13: =SUMIFS(GastosOperativos[Antes período],GastosOperativos[Tipo de gasto],"Generales y administrativos") -> 0.00 € | E13: =SUMIFS(GastosOperativos[Presupuesto],GastosOperativos[Tipo de gasto],"Generales y administrativos") -> 0.00 € | F13: =SUMIFS(GastosOperativos[Actual período],GastosOperativos[Tipo de gasto],"Generales y administrativos") -> 0.00 € | G13: =SUMIFS(GastosOperativos[Período actual como % de ventas],GastosOperativos[Tipo de gasto],"Generales y administrativos") -> 0.00% | H13: =SUMIFS(GastosOperativos[Porcentaje de cambio desde período anterior],GastosOperativos[Tipo de gasto],"Generales y administrativos") -> 0.00% | I13: =SUMIFS(GastosOperativos[% de cambio del presupuesto],GastosOperativos[Tipo de gasto],"Generales y administrativos") -> 0.00%
C14: Total de otros gastos operativos [P] | D14: =GastosOperativos[[#Totals],[Antes período]]-SUM(D11:D13) -> 0.00 € | E14: =GastosOperativos[[#Totals],[Presupuesto]]-SUM(E11:E13) -> 0.00 € | F14: =GastosOperativos[[#Totals],[Actual período]]-SUM(F11:F13) -> 0.00 € | G14: =GastosOperativos[[#Totals],[Período actual como % de ventas]]-SUM(G11:G13) -> 0.00% | H14: =GastosOperativos[[#Totals],[Porcentaje de cambio desde período anterior]]-SUM(H11:H13) -> 0.00% | I14: =GastosOperativos[[#Totals],[% de cambio del presupuesto]]-SUM(I11:I13) -> 0.00%
C15: Otros ingresos [S] | D15: =Ingresos[[#Totals],[Antes período]] -> 50.00 € | E15: =Ingresos[[#Totals],[Presupuesto]] -> 60.00 € | F15: =Ingresos[[#Totals],[Actual período]] -> 62.00 € | G15: =Ingresos[[#Totals],[Período actual como % de ventas]] -> 62.00% | H15: =Ingresos[[#Totals],[Porcentaje de cambio desde período anterior]] -> 24.00% | I15: =Ingresos[[#Totals],[% de cambio del presupuesto]] -> 3.33%
C16: Total de impuestos [T] | D16: =Impuestos[[#Totals],[Antes período]] -> 10.00 € | E16: =Impuestos[[#Totals],[Presupuesto]] -> 12.00 € | F16: =Impuestos[[#Totals],[Actual período]] -> 12.00 € | G16: =Impuestos[[#Totals],[Período actual como % de ventas]] -> 12.00% | H16: =Impuestos[[#Totals],[Porcentaje de cambio desde el período anterior]] -> 20.00% | I16: =Impuestos[[#Totals],[% de cambio del presupuesto]] -> 0.00%
C18: Resumen | D18: Total período anterior | E18: Total presupuesto | F18: Total período actual | G18: Total actual período como % de ventas | H18: % de cambio total del período anterior | I18: % de cambio total del presupuesto
C19: Ganancia bruta [L=J-K] | D19: =IFERROR(D9-D10,"-") -> 125.00 € | E19: =IFERROR(E9-E10,"-") -> 151.00 € | F19: =IFERROR(Total_de_ingresos_por_ventas-Costo_de_ventas_total,"-") -> 155.00 € | G19: =IFERROR(IF(Total_de_ingresos_por_ventas=0,"0.00%",Total_de_ganacia_bruta/Total_de_ingresos_por_ventas),"-") -> 155.00% | H19: =IFERROR(IF(D19=Total_de_ganacia_bruta,0,IF(Total_de_ganacia_bruta>D19,ABS((Total_de_ganacia_bruta/D19)-1),IF(AND(Total_de_ganacia_bruta<D19,D19<0),-((Total_de_ganacia_bruta/D19)-1),(Total_de_ganacia_bruta/D19)-1))),"-") -> 24.00% | I19: =IFERROR(IF(E19=Total_de_ganacia_bruta,0,IF(Total_de_ganacia_bruta>E19,ABS((Total_de_ganacia_bruta/E19)-1),IF(AND(Total_de_ganacia_bruta<E19,E19<0),-((Total_de_ganacia_bruta/E19)-1),(Total_de_ganacia_bruta/E19)-1))),"-") -> 2.65%
C20: Total de gastos operativos [Q=M+N+O+P] | D20: =IFERROR(D11+D12+D13+D14,"-") -> 30.00 € | E20: =IFERROR(E11+E12+E13+E14,"-") -> 35.00 € | F20: =IFERROR(Total_de_ventas_y_marketing+Total_de_investigación_y_desarrollo+Total_general_y_administrativo+Total_de_otros_gastos,"-") -> 45.00 € | G20: =IFERROR(IF(Total_de_ingresos_por_ventas=0,"0.00%",Total_de_gastos_operativos/Total_de_ingresos_por_ventas),"-") -> 45.00% | H20: =IFERROR(IF(D20=Total_de_gastos_operativos,0,IF(Total_de_gastos_operativos>D20,ABS((Total_de_gastos_operativos/D20)-1),IF(AND(Total_de_gastos_operativos<D20,D20<0),-((Total_de_gastos_operativos/D20)-1),(Total_de_gastos_operativos/D20)-1))),"-") -> 50.00% | I20: =IFERROR(IF(E20=Total_de_gastos_operativos,0,IF(Total_de_gastos_operativos>E20,ABS((Total_de_gastos_operativos/E20)-1),IF(AND(Total_de_gastos_operativos<E20,E20<0),-((Total_de_gastos_operativos/E20)-1),(Total_de_gastos_operativos/E20)-1))),"-") -> 28.57%
C21: Ingresos de operaciones [R=L-Q] | D21: =IFERROR(D19-D20,"-") -> 95.00 € | E21: =IFERROR(E19-E20,"-") -> 116.00 € | F21: =IFERROR(Total_de_ganacia_bruta-Total_de_gastos_operativos,"-") -> 110.00 € | G21: =IFERROR(IF(Total_de_ingresos_por_ventas=0,"0.00%",Total_de_ingresos_por_operaciones/Total_de_ingresos_por_ventas),"-") -> 110.00% | H21: =IFERROR(IF(D21=Total_de_ingresos_por_operaciones,0,IF(Total_de_ingresos_por_operaciones>D21,ABS((Total_de_ingresos_por_operaciones/D21)-1),IF(AND(Total_de_ingresos_por_operaciones<D21,D21<0),-((Total_de_ingresos_por_operaciones/D21)-1),(Total_de_ingresos_por_operaciones/D21)-1))),"-") -> 15.79% | I21: =IFERROR(IF(E21=Total_de_ingresos_por_operaciones,0,IF(Total_de_ingresos_por_operaciones>E21,ABS((Total_de_ingresos_por_operaciones/E21)-1),IF(AND(Total_de_ingresos_por_operaciones<E21,E21<0),-((Total_de_ingresos_por_operaciones/E21)-1),(Total_de_ingresos_por_operaciones/E21)-1))),"-") -> -5.17%
C22: Ganancia neta [U=R+S-T] | D22: =IFERROR(D21+D15-D16,"-") -> 135.00 € | E22: =IFERROR(E21+E15-E16,"-") -> 164.00 € | F22: =Total_de_ingresos_por_operaciones+Total_de_otros_ingresos-Total_de_impuestos -> 160.00 € | G22: =IFERROR(IF(Total_de_ingresos_por_ventas=0,"0.00%",Beneficios_netos/Total_de_ingresos_por_ventas),"-") -> 160.00% | H22: =IFERROR(IF(D22=Beneficios_netos,0,IF(Beneficios_netos>D22,ABS((Beneficios_netos/D22)-1),IF(AND(Beneficios_netos<D22,D22<0),-((Beneficios_netos/D22)-1),(Beneficios_netos/D22)-1))),"-") -> 18.52% | I22: =IFERROR(IF(E22=Beneficios_netos,0,IF(Beneficios_netos>E22,ABS((Beneficios_netos/E22)-1),IF(AND(Beneficios_netos<E22,E22<0),-((Beneficios_netos/E22)-1),(Beneficios_netos/E22)-1))),"-") -> -2.44%

Sheet Ventas
C3: =Título_Libro -> BALANCE DE PÉRDIDAS Y GANANCIAS | I3: Ingresos por ventas
C4: =Nombre_de_la_compañía -> CELULAR SATCOM | I4: Expresado en millares | J4: =IFERROR(Ingresos_Por_Ventas,"-") -> 100.00 €
C6: Tipo de ingreso | D6: Descripción | E6: Antes período | F6: Presupuesto | G6: Actual período | H6: Período actual como % de ventas | I6: Porcentaje de cambio desde período anterior | J6: % de cambio del presupuesto
C7: Ingresos por ventas | D7: Producto/servicio 1 | E7: 50.00 € | F7: 1.00 € | G7: 5.00 € | H7: =IFERROR(IF(IngresosPorVentas[[#Totals],[Actual período]]=0,"-",IngresosPorVentas[[#This Row],[Actual período]]/Ingresos_Por_Ventas),"-") -> 5.00% | I7: =IFERROR(IF(IngresosPorVentas[[#This Row],[Antes período]]=IngresosPorVentas[[#This Row],[Actual período]],0,IF(IngresosPorVentas[[#This Row],[Actual período]]>IngresosPorVentas[[#This Row],[Antes período]],ABS((IngresosPorVentas[[#This Row],[Actual período]]/IngresosPorVentas[[#This Row],[Antes período]])-1),IF(AND(IngresosPorVentas[[#This Row],[Actual período]]<IngresosPorVentas[[#This Row],[Antes período]],IngresosPorVentas[[#This Row],[Antes período]]<0),-((IngresosPorVentas[[#This Row],[Actual período]]/IngresosPorVentas[[#This Row],[Antes período]])-1),(IngresosPorVentas[[#This Row],[Actual período]]/IngresosPorVentas[[#This Row],[Antes período]])-1))),"-") -> -90.00% | J7: =IFERROR(IF(IngresosPorVentas[[#This Row],[Presupuesto]]=IngresosPorVentas[[#This Row],[Actual período]],0,IF(IngresosPorVentas[[#This Row],[Actual período]]>IngresosPorVentas[[#This Row],[Presupuesto]],ABS((IngresosPorVentas[[#This Row],[Actual período]]/IngresosPorVentas[[#This Row],[Presupuesto]])-1),IF(AND(IngresosPorVentas[[#This Row],[Actual período]]<IngresosPorVentas[[#This Row],[Presupuesto]],IngresosPorVentas[[#This Row],[Presupuesto]]<0),-((IngresosPorVentas[[#This Row],[Actual período]]/IngresosPorVentas[[#This Row],[Presupuesto]])-1),(IngresosPorVentas[[#This Row],[Actual período]]/IngresosPorVentas[[#This Row],[Presupuesto]])-1))),"-") -> 400.00%
C8: Ingresos por ventas | D8: Producto/servicio 2 | E8: 50.00 € | F8: 100.00 € | G8: 95.00 € | H8: =IFERROR(IF(IngresosPorVentas[[#Totals],[Actual período]]=0,"-",IngresosPorVentas[[#This Row],[Actual período]]/Ingresos_Por_Ventas),"-") -> 95.00% | I8: =IFERROR(IF(IngresosPorVentas[[#This Row],[Antes período]]=IngresosPorVentas[[#This Row],[Actual período]],0,IF(IngresosPorVentas[[#This Row],[Actual período]]>IngresosPorVentas[[#This Row],[Antes período]],ABS((IngresosPorVentas[[#This Row],[Actual período]]/IngresosPorVentas[[#This Row],[Antes período]])-1),IF(AND(IngresosPorVentas[[#This Row],[Actual período]]<IngresosPorVentas[[#This Row],[Antes período]],IngresosPorVentas[[#This Row],[Antes período]]<0),-((IngresosPorVentas[[#This Row],[Actual período]]/IngresosPorVentas[[#This Row],[Antes período]])-1),(IngresosPorVentas[[#This Row],[Actual período]]/IngresosPorVentas[[#This Row],[Antes período]])-1))),"-") -> 90.00% | J8: =IFERROR(IF(IngresosPorVentas[[#This Row],[Presupuesto]]=IngresosPorVentas[[#This Row],[Actual período]],0,IF(IngresosPorVentas[[#This Row],[Actual período]]>IngresosPorVentas[[#This Row],[Presupuesto]],ABS((IngresosPorVentas[[#This Row],[Actual período]]/IngresosPorVentas[[#This Row],[Presupuesto]])-1),IF(AND(IngresosPorVentas[[#This Row],[Actual período]]<IngresosPorVentas[[#This Row],[Presupuesto]],IngresosPorVentas[[#This Row],[Presupuesto]]<0),-((IngresosPorVentas[[#This Row],[Actual período]]/IngresosPorVentas[[#This Row],[Presupuesto]])-1),(IngresosPorVentas[[#This Row],[Actual período]]/IngresosPorVentas[[#This Row],[Presupuesto]])-1))),"-") -> -5.00%
C9: Ingresos por ventas | D9: Producto/servicio 3 | H9: =IFERROR(IF(IngresosPorVentas[[#Totals],[Actual período]]=0,"-",IngresosPorVentas[[#This Row],[Actual período]]/Ingresos_Por_Ventas),"-") -> 0.00% | I9: =IFERROR(IF(IngresosPorVentas[[#This Row],[Antes período]]=IngresosPorVentas[[#This Row],[Actual período]],0,IF(IngresosPorVentas[[#This Row],[Actual período]]>IngresosPorVentas[[#This Row],[Antes período]],ABS((IngresosPorVentas[[#This Row],[Actual período]]/IngresosPorVentas[[#This Row],[Antes período]])-1),IF(AND(IngresosPorVentas[[#This Row],[Actual período]]<IngresosPorVentas[[#This Row],[Antes período]],IngresosPorVentas[[#This Row],[Antes período]]<0),-((IngresosPorVentas[[#This Row],[Actual período]]/IngresosPorVentas[[#This Row],[Antes período]])-1),(IngresosPorVentas[[#This Row],[Actual período]]/IngresosPorVentas[[#This Row],[Antes período]])-1))),"-") -> 0.00% | J9: =IFERROR(IF(IngresosPorVentas[[#This Row],[Presupuesto]]=IngresosPorVentas[[#This Row],[Actual período]],0,IF(IngresosPorVentas[[#This Row],[Actual período]]>IngresosPorVentas[[#This Row],[Presupuesto]],ABS((IngresosPorVentas[[#This Row],[Actual período]]/IngresosPorVentas[[#This Row],[Presupuesto]])-1),IF(AND(IngresosPorVentas[[#This Row],[Actual período]]<IngresosPorVentas[[#This Row],[Presupuesto]],IngresosPorVentas[[#This Row],[Presupuesto]]<0),-((IngresosPorVentas[[#This Row],[Actual período]]/IngresosPorVentas[[#This Row],[Presupuesto]])-1),(IngresosPorVentas[[#This Row],[Actual período]]/IngresosPorVentas[[#This Row],[Presupuesto]])-1))),"-") -> 0.00%
C10: Ingresos por ventas | D10: Producto/servicio 4 | H10: =IFERROR(IF(IngresosPorVentas[[#Totals],[Actual período]]=0,"-",IngresosPorVentas[[#This Row],[Actual período]]/Ingresos_Por_Ventas),"-") -> 0.00% | I10: =IFERROR(IF(IngresosPorVentas[[#This Row],[Antes período]]=IngresosPorVentas[[#This Row],[Actual período]],0,IF(IngresosPorVentas[[#This Row],[Actual período]]>IngresosPorVentas[[#This Row],[Antes período]],ABS((IngresosPorVentas[[#This Row],[Actual período]]/IngresosPorVentas[[#This Row],[Antes período]])-1),IF(AND(IngresosPorVentas[[#This Row],[Actual período]]<IngresosPorVentas[[#This Row],[Antes período]],IngresosPorVentas[[#This Row],[Antes período]]<0),-((IngresosPorVentas[[#This Row],[Actual período]]/IngresosPorVentas[[#This Row],[Antes período]])-1),(IngresosPorVentas[[#This Row],[Actual período]]/IngresosPorVentas[[#This Row],[Antes período]])-1))),"-") -> 0.00% | J10: =IFERROR(IF(IngresosPorVentas[[#This Row],[Presupuesto]]=IngresosPorVentas[[#This Row],[Actual período]],0,IF(IngresosPorVentas[[#This Row],[Actual período]]>IngresosPorVentas[[#This Row],[Presupuesto]],ABS((IngresosPorVentas[[#This Row],[Actual período]]/IngresosPorVentas[[#This Row],[Presupuesto]])-1),IF(AND(IngresosPorVentas[[#This Row],[Actual período]]<IngresosPorVentas[[#This Row],[Presupuesto]],IngresosPorVentas[[#This Row],[Presupuesto]]<0),-((IngresosPorVentas[[#This Row],[Actual período]]/IngresosPorVentas[[#This Row],[Presupuesto]])-1),(IngresosPorVentas[[#This Row],[Actual período]]/IngresosPorVentas[[#This Row],[Presupuesto]])-1))),"-") -> 0.00%
C11: Costo de ventas | D11: Producto/servicio 1 | E11: -25.00 € | F11: -50.00 € | G11: -55.00 € | H11: =IFERROR(IF(IngresosPorVentas[[#Totals],[Actual período]]=0,"-",IngresosPorVentas[[#This Row],[Actual período]]/Ingresos_Por_Ventas),"-") -> -55.00% | I11: =IFERROR(IF(IngresosPorVentas[[#This Row],[Antes período]]=IngresosPorVentas[[#This Row],[Actual período]],0,IF(IngresosPorVentas[[#This Row],[Actual período]]>IngresosPorVentas[[#This Row],[Antes período]],ABS((IngresosPorVentas[[#This Row],[Actual período]]/IngresosPorVentas[[#This Row],[Antes período]])-1),IF(AND(IngresosPorVentas[[#This Row],[Actual período]]<IngresosPorVentas[[#This Row],[Antes período]],IngresosPorVentas[[#This Row],[Antes período]]<0),-((IngresosPorVentas[[#This Row],[Actual período]]/IngresosPorVentas[[#This Row],[Antes período]])-1),(IngresosPorVentas[[#This Row],[Actual período]]/IngresosPorVentas[[#This Row],[Antes período]])-1))),"-") -> -120.00% | J11: =IFERROR(IF(IngresosPorVentas[[#This Row],[Presupuesto]]=IngresosPorVentas[[#This Row],[Actual período]],0,IF(IngresosPorVentas[[#This Row],[Actual período]]>IngresosPorVentas[[#This Row],[Presupuesto]],ABS((IngresosPorVentas[[#This Row],[Actual período]]/IngresosPorVentas[[#This Row],[Presupuesto]])-1),IF(AND(IngresosPorVentas[[#This Row],[Actual período]]<IngresosPorVentas[[#This Row],[Presupuesto]],IngresosPorVentas[[#This Row],[Presupuesto]]<0),-((IngresosPorVentas[[#This Row],[Actual período]]/IngresosPorVentas[[#This Row],[Presupuesto]])-1),(IngresosPorVentas[[#This Row],[Actual período]]/IngresosPorVentas[[#This Row],[Presupuesto]])-1))),"-") -> -10.00%
C12: Costo de ventas | D12: Producto/servicio 2 | H12: =IFERROR(IF(IngresosPorVentas[[#Totals],[Actual período]]=0,"-",IngresosPorVentas[[#This Row],[Actual período]]/Ingresos_Por_Ventas),"-") -> 0.00% | I12: =IFERROR(IF(IngresosPorVentas[[#This Row],[Antes período]]=IngresosPorVentas[[#This Row],[Actual período]],0,IF(IngresosPorVentas[[#This Row],[Actual período]]>IngresosPorVentas[[#This Row],[Antes período]],ABS((IngresosPorVentas[[#This Row],[Actual período]]/IngresosPorVentas[[#This Row],[Antes período]])-1),IF(AND(IngresosPorVentas[[#This Row],[Actual período]]<IngresosPorVentas[[#This Row],[Antes período]],IngresosPorVentas[[#This Row],[Antes período]]<0),-((IngresosPorVentas[[#This Row],[Actual período]]/IngresosPorVentas[[#This Row],[Antes período]])-1),(IngresosPorVentas[[#This Row],[Actual período]]/IngresosPorVentas[[#This Row],[Antes período]])-1))),"-") -> 0.00% | J12: =IFERROR(IF(IngresosPorVentas[[#This Row],[Presupuesto]]=IngresosPorVentas[[#This Row],[Actual período]],0,IF(IngresosPorVentas[[#This Row],[Actual período]]>IngresosPorVentas[[#This Row],[Presupuesto]],ABS((IngresosPorVentas[[#This Row],[Actual período]]/IngresosPorVentas[[#This Row],[Presupuesto]])-1),IF(AND(IngresosPorVentas[[#This Row],[Actual período]]<IngresosPorVentas[[#This Row],[Presupuesto]],IngresosPorVentas[[#This Row],[Presupuesto]]<0),-((IngresosPorVentas[[#This Row],[Actual período]]/IngresosPorVentas[[#This Row],[Presupuesto]])-1),(IngresosPorVentas[[#This Row],[Actual período]]/IngresosPorVentas[[#This Row],[Presupuesto]])-1))),"-") -> 0.00%
C13: Costo de ventas | D13: Producto/servicio 3 | H13: =IFERROR(IF(IngresosPorVentas[[#Totals],[Actual período]]=0,"-",IngresosPorVentas[[#This Row],[Actual período]]/Ingresos_Por_Ventas),"-") -> 0.00% | I13: =IFERROR(IF(IngresosPorVentas[[#This Row],[Antes período]]=IngresosPorVentas[[#This Row],[Actual período]],0,IF(IngresosPorVentas[[#This Row],[Actual período]]>IngresosPorVentas[[#This Row],[Antes período]],ABS((IngresosPorVentas[[#This Row],[Actual período]]/IngresosPorVentas[[#This Row],[Antes período]])-1),IF(AND(IngresosPorVentas[[#This Row],[Actual período]]<IngresosPorVentas[[#This Row],[Antes período]],IngresosPorVentas[[#This Row],[Antes período]]<0),-((IngresosPorVentas[[#This Row],[Actual período]]/IngresosPorVentas[[#This Row],[Antes período]])-1),(IngresosPorVentas[[#This Row],[Actual período]]/IngresosPorVentas[[#This Row],[Antes período]])-1))),"-") -> 0.00% | J13: =IFERROR(IF(IngresosPorVentas[[#This Row],[Presupuesto]]=IngresosPorVentas[[#This Row],[Actual período]],0,IF(IngresosPorVentas[[#This Row],[Actual período]]>IngresosPorVentas[[#This Row],[Presupuesto]],ABS((IngresosPorVentas[[#This Row],[Actual período]]/IngresosPorVentas[[#This Row],[Presupuesto]])-1),IF(AND(IngresosPorVentas[[#This Row],[Actual período]]<IngresosPorVentas[[#This Row],[Presupuesto]],IngresosPorVentas[[#This Row],[Presupuesto]]<0),-((IngresosPorVentas[[#This Row],[Actual período]]/IngresosPorVentas[[#This Row],[Presupuesto]])-1),(IngresosPorVentas[[#This Row],[Actual período]]/IngresosPorVentas[[#This Row],[Presupuesto]])-1))),"-") -> 0.00%
C14: Costo de ventas | D14: Producto/servicio 4 | H14: =IFERROR(IF(IngresosPorVentas[[#Totals],[Actual período]]=0,"-",IngresosPorVentas[[#This Row],[Actual período]]/Ingresos_Por_Ventas),"-") -> 0.00% | I14: =IFERROR(IF(IngresosPorVentas[[#This Row],[Antes período]]=IngresosPorVentas[[#This Row],[Actual período]],0,IF(IngresosPorVentas[[#This Row],[Actual período]]>IngresosPorVentas[[#This Row],[Antes período]],ABS((IngresosPorVentas[[#This Row],[Actual período]]/IngresosPorVentas[[#This Row],[Antes período]])-1),IF(AND(IngresosPorVentas[[#This Row],[Actual período]]<IngresosPorVentas[[#This Row],[Antes período]],IngresosPorVentas[[#This Row],[Antes período]]<0),-((IngresosPorVentas[[#This Row],[Actual período]]/IngresosPorVentas[[#This Row],[Antes período]])-1),(IngresosPorVentas[[#This Row],[Actual período]]/IngresosPorVentas[[#This Row],[Antes período]])-1))),"-") -> 0.00% | J14: =IFERROR(IF(IngresosPorVentas[[#This Row],[Presupuesto]]=IngresosPorVentas[[#This Row],[Actual período]],0,IF(IngresosPorVentas[[#This Row],[Actual período]]>IngresosPorVentas[[#This Row],[Presupuesto]],ABS((IngresosPorVentas[[#This Row],[Actual período]]/IngresosPorVentas[[#This Row],[Presupuesto]])-1),IF(AND(IngresosPorVentas[[#This Row],[Actual período]]<IngresosPorVentas[[#This Row],[Presupuesto]],IngresosPorVentas[[#This Row],[Presupuesto]]<0),-((IngresosPorVentas[[#This Row],[Actual período]]/IngresosPorVentas[[#This Row],[Presupuesto]])-1),(IngresosPorVentas[[#This Row],[Actual período]]/IngresosPorVentas[[#This Row],[Presupuesto]])-1))),"-") -> 0.00%
C15: Total de ingresos por ventas | E15: =SUBTOTAL(109,IngresosPorVentas[Antes período]) -> 75.00 € | F15: =SUBTOTAL(109,IngresosPorVentas[Presupuesto]) -> 51.00 € | G15: =SUBTOTAL(109,IngresosPorVentas[Actual período]) -> 45.00 € | H15: =SUBTOTAL(109,IngresosPorVentas[Período actual como % de ventas]) -> 45.00% | I15: =SUBTOTAL(109,IngresosPorVentas[Porcentaje de cambio desde período anterior]) -> -120.00% | J15: =SUBTOTAL(109,IngresosPorVentas[% de cambio del presupuesto]) -> 385.00%

Sheet Ingresos
C3: =Título_Libro -> BALANCE DE PÉRDIDAS Y GANANCIAS | I3: Ingresos
C4: =Nombre_de_la_compañía -> CELULAR SATCOM | I4: Expresado en millares | J4: =IFERROR(Ingresos[[#Totals],[Actual período]],"-") -> 62.00 €
C6: Tipo de ingreso | D6: Descripción | E6: Antes período | F6: Presupuesto | G6: Actual período | H6: Período actual como % de ventas | I6: Porcentaje de cambio desde período anterior | J6: % de cambio del presupuesto
C7: Ingresos | D7: Otros ingresos | E7: 50.00 € | F7: 60.00 € | G7: 62.00 € | H7: =IFERROR(IF(Ingresos_Por_Ventas=0,"-",Ingresos[[#This Row],[Actual período]]/Ingresos_Por_Ventas),"-") -> 62.00% | I7: =IFERROR(IF(Ingresos[[#This Row],[Antes período]]=Ingresos[[#This Row],[Actual período]],0,IF(Ingresos[[#This Row],[Actual período]]>Ingresos[[#This Row],[Antes período]],ABS((Ingresos[[#This Row],[Actual período]]/Ingresos[[#This Row],[Antes período]])-1),IF(AND(Ingresos[[#This Row],[Actual período]]<Ingresos[[#This Row],[Antes período]],Ingresos[[#This Row],[Antes período]]<0),-((Ingresos[[#This Row],[Actual período]]/Ingresos[[#This Row],[Antes período]])-1),(Ingresos[[#This Row],[Actual período]]/Ingresos[[#This Row],[Antes período]])-1))),"-") -> 24.00% | J7: =IFERROR(IF(Ingresos[[#This Row],[Presupuesto]]=Ingresos[[#This Row],[Actual período]],0,IF(Ingresos[[#This Row],[Actual período]]>Ingresos[[#This Row],[Presupuesto]],ABS((Ingresos[[#This Row],[Actual período]]/Ingresos[[#This Row],[Presupuesto]])-1),IF(AND(Ingresos[[#This Row],[Actual período]]<Ingresos[[#This Row],[Presupuesto]],Ingresos[[#This Row],[Presupuesto]]<0),-((Ingresos[[#This Row],[Actual período]]/Ingresos[[#This Row],[Presupuesto]])-1),(Ingresos[[#This Row],[Actual período]]/Ingresos[[#This Row],[Presupuesto]])-1))),"-") -> 3.33%
H8: =IFERROR(IF(Ingresos_Por_Ventas=0,"-",Ingresos[[#This Row],[Actual período]]/Ingresos_Por_Ventas),"-") -> 0.00% | I8: =IFERROR(IF(Ingresos[[#This Row],[Antes período]]=Ingresos[[#This Row],[Actual período]],0,IF(Ingresos[[#This Row],[Actual período]]>Ingresos[[#This Row],[Antes período]],ABS((Ingresos[[#This Row],[Actual período]]/Ingresos[[#This Row],[Antes período]])-1),IF(AND(Ingresos[[#This Row],[Actual período]]<Ingresos[[#This Row],[Antes período]],Ingresos[[#This Row],[Antes período]]<0),-((Ingresos[[#This Row],[Actual período]]/Ingresos[[#This Row],[Antes período]])-1),(Ingresos[[#This Row],[Actual período]]/Ingresos[[#This Row],[Antes período]])-1))),"-") -> 0.00% | J8: =IFERROR(IF(Ingresos[[#This Row],[Presupuesto]]=Ingresos[[#This Row],[Actual período]],0,IF(Ingresos[[#This Row],[Actual período]]>Ingresos[[#This Row],[Presupuesto]],ABS((Ingresos[[#This Row],[Actual período]]/Ingresos[[#This Row],[Presupuesto]])-1),IF(AND(Ingresos[[#This Row],[Actual período]]<Ingresos[[#This Row],[Presupuesto]],Ingresos[[#This Row],[Presupuesto]]<0),-((Ingresos[[#This Row],[Actual período]]/Ingresos[[#This Row],[Presupuesto]])-1),(Ingresos[[#This Row],[Actual período]]/Ingresos[[#This Row],[Presupuesto]])-1))),"-") -> 0.00%
C9: Total de ingresos por ventas | E9: =SUBTOTAL(109,Ingresos[Antes período]) -> 50.00 € | F9: =SUBTOTAL(109,Ingresos[Presupuesto]) -> 60.00 € | G9: =SUBTOTAL(109,Ingresos[Actual período]) -> 62.00 € | H9: =SUBTOTAL(109,Ingresos[Período actual como % de ventas]) -> 62.00% | I9: =SUBTOTAL(109,Ingresos[Porcentaje de cambio desde período anterior]) -> 24.00% | J9: =SUBTOTAL(109,Ingresos[% de cambio del presupuesto]) -> 3.33%

Sheet Gastos
C3: =Título_Libro -> BALANCE DE PÉRDIDAS Y GANANCIAS | I3: Gastos operativos
C4: =Nombre_de_la_compañía -> CELULAR SATCOM | I4: Expresado en millares | J4: =IFERROR(GastosOperativos[[#Totals],[Actual período]],"-") -> 45.00 €
C6: Tipo de gasto | D6: Descripción | E6: Antes período | F6: Presupuesto | G6: Actual período | H6: Período actual como % de ventas | I6: Porcentaje de cambio desde período anterior | J6: % de cambio del presupuesto
C7: Ventas y marketing | D7: Publicidad | E7: 30.00 € | F7: 35.00 € | G7: 45.00 € | H7: =IFERROR(IF(Ingresos_Por_Ventas=0,"-",GastosOperativos[[#This Row],[Actual período]]/Ingresos_Por_Ventas),"-") -> 45.00% | I7: =IFERROR(IF(GastosOperativos[[#This Row],[Antes período]]=GastosOperativos[[#This Row],[Actual período]],0,IF(GastosOperativos[[#This Row],[Actual período]]>GastosOperativos[[#This Row],[Antes período]],ABS((GastosOperativos[[#This Row],[Actual período]]/GastosOperativos[[#This Row],[Antes período]])-1),IF(AND(GastosOperativos[[#This Row],[Actual período]]<GastosOperativos[[#This Row],[Antes período]],GastosOperativos[[#This Row],[Antes período]]<0),-((GastosOperativos[[#This Row],[Actual período]]/GastosOperativos[[#This Row],[Antes período]])-1),(GastosOperativos[[#This Row],[Actual período]]/GastosOperativos[[#This Row],[Antes período]])-1))),"-") -> 50.00% | J7: =IFERROR(IF(GastosOperativos[[#This Row],[Presupuesto]]=GastosOperativos[[#This Row],[Actual período]],0,IF(GastosOperativos[[#This Row],[Actual período]]>GastosOperativos[[#This Row],[Presupuesto]],ABS((GastosOperativos[[#This Row],[Actual período]]/GastosOperativos[[#This Row],[Presupuesto]])-1),IF(AND(GastosOperativos[[#This Row],[Actual período]]<GastosOperativos[[#This Row],[Presupuesto]],GastosOperativos[[#This Row],[Presupuesto]]<0),-((GastosOperativos[[#This Row],[Actual período]]/GastosOperativos[[#This Row],[Presupuesto]])-1),(GastosOperativos[[#This Row],[Actual período]]/GastosOperativos[[#This Row],[Presupuesto]])-1))),"-") -> 28.57%
C8: Ventas y marketing | D8: Marketing directo | H8: =IFERROR(IF(Ingresos_Por_Ventas=0,"-",GastosOperativos[[#This Row],[Actual período]]/Ingresos_Por_Ventas),"-") -> 0.00% | I8: =IFERROR(IF(GastosOperativos[[#This Row],[Antes período]]=GastosOperativos[[#This Row],[Actual período]],0,IF(GastosOperativos[[#This Row],[Actual período]]>GastosOperativos[[#This Row],[Antes período]],ABS((GastosOperativos[[#This Row],[Actual período]]/GastosOperativos[[#This Row],[Antes período]])-1),IF(AND(GastosOperativos[[#This Row],[Actual período]]<GastosOperativos[[#This Row],[Antes período]],GastosOperativos[[#This Row],[Antes período]]<0),-((GastosOperativos[[#This Row],[Actual período]]/GastosOperativos[[#This Row],[Antes período]])-1),(GastosOperativos[[#This Row],[Actual período]]/GastosOperativos[[#This Row],[Antes período]])-1))),"-") -> 0.00% | J8: =IFERROR(IF(GastosOperativos[[#This Row],[Presupuesto]]=GastosOperativos[[#This Row],[Actual período]],0,IF(GastosOperativos[[#This Row],[Actual período]]>GastosOperativos[[#This Row],[Presupuesto]],ABS((GastosOperativos[[#This Row],[Actual período]]/GastosOperativos[[#This Row],[Presupuesto]])-1),IF(AND(GastosOperativos[[#This Row],[Actual período]]<GastosOperativos[[#This Row],[Presupuesto]],GastosOperativos[[#This Row],[Presupuesto]]<0),-((GastosOperativos[[#This Row],[Actual período]]/GastosOperativos[[#This Row],[Presupuesto]])-1),(GastosOperativos[[#This Row],[Actual período]]/GastosOperativos[[#This Row],[Presupuesto]])-1))),"-") -> 0.00%
C9: Ventas y marketing | D9: Otros gastos (especifique) | H9: =IFERROR(IF(Ingresos_Por_Ventas=0,"-",GastosOperativos[[#This Row],[Actual período]]/Ingresos_Por_Ventas),"-") -> 0.00% | I9: =IFERROR(IF(GastosOperativos[[#This Row],[Antes período]]=GastosOperativos[[#This Row],[Actual período]],0,IF(GastosOperativos[[#This Row],[Actual período]]>GastosOperativos[[#This Row],[Antes período]],ABS((GastosOperativos[[#This Row],[Actual período]]/GastosOperativos[[#This Row],[Antes período]])-1),IF(AND(GastosOperativos[[#This Row],[Actual período]]<GastosOperativos[[#This Row],[Antes período]],GastosOperativos[[#This Row],[Antes período]]<0),-((GastosOperativos[[#This Row],[Actual período]]/GastosOperativos[[#This Row],[Antes período]])-1),(GastosOperativos[[#This Row],[Actual período]]/GastosOperativos[[#This Row],[Antes período]])-1))),"-") -> 0.00% | J9: =IFERROR(IF(GastosOperativos[[#This Row],[Presupuesto]]=GastosOperativos[[#This Row],[Actual período]],0,IF(GastosOperativos[[#This Row],[Actual período]]>GastosOperativos[[#This Row],[Presupuesto]],ABS((GastosOperativos[[#This Row],[Actual período]]/GastosOperativos[[#This Row],[Presupuesto]])-1),IF(AND(GastosOperativos[[#This Row],[Actual período]]<GastosOperativos[[#This Row],[Presupuesto]],GastosOperativos[[#This Row],[Presupuesto]]<0),-((GastosOperativos[[#This Row],[Actual período]]/GastosOperativos[[#This Row],[Presupuesto]])-1),(GastosOperativos[[#This Row],[Actual período]]/GastosOperativos[[#This Row],[Presupuesto]])-1))),"-") -> 0.00%
C10: Ventas y marketing | D10: Otros gastos (especifique) | H10: =IFERROR(IF(Ingresos_Por_Ventas=0,"-",GastosOperativos[[#This Row],[Actual período]]/Ingresos_Por_Ventas),"-") -> 0.00% | I10: =IFERROR(IF(GastosOperativos[[#This Row],[Antes período]]=GastosOperativos[[#This Row],[Actual período]],0,IF(GastosOperativos[[#This Row],[Actual período]]>GastosOperativos[[#This Row],[Antes período]],ABS((GastosOperativos[[#This Row],[Actual período]]/GastosOperativos[[#This Row],[Antes período]])-1),IF(AND(GastosOperativos[[#This Row],[Actual período]]<GastosOperativos[[#This Row],[Antes período]],GastosOperativos[[#This Row],[Antes período]]<0),-((GastosOperativos[[#This Row],[Actual período]]/GastosOperativos[[#This Row],[Antes período]])-1),(GastosOperativos[[#This Row],[Actual período]]/GastosOperativos[[#This Row],[Antes período]])-1))),"-") -> 0.00% | J10: =IFERROR(IF(GastosOperativos[[#This Row],[Presupuesto]]=GastosOperativos[[#This Row],[Actual período]],0,IF(GastosOperativos[[#This Row],[Actual período]]>GastosOperativos[[#This Row],[Presupuesto]],ABS((GastosOperativos[[#This Row],[Actual período]]/GastosOperativos[[#This Row],[Presupuesto]])-1),IF(AND(GastosOperativos[[#This Row],[Actual período]]<GastosOperativos[[#This Row],[Presupuesto]],GastosOperativos[[#This Row],[Presupuesto]]<0),-((GastosOperativos[[#This Row],[Actual período]]/GastosOperativos[[#This Row],[Presupuesto]])-1),(GastosOperativos[[#This Row],[Actual período]]/GastosOperativos[[#This Row],[Presupuesto]])-1))),"-") -> 0.00%
C11: Investigación y desarrollo | D11: Licencias de tecnología | H11: =IFERROR(IF(Ingresos_Por_Ventas=0,"-",GastosOperativos[[#This Row],[Actual período]]/Ingresos_Por_Ventas),"-") -> 0.00% | I11: =IFERROR(IF(GastosOperativos[[#This Row],[Antes período]]=GastosOperativos[[#This Row],[Actual período]],0,IF(GastosOperativos[[#This Row],[Actual período]]>GastosOperativos[[#This Row],[Antes período]],ABS((GastosOperativos[[#This Row],[Actual período]]/GastosOperativos[[#This Row],[Antes período]])-1),IF(AND(GastosOperativos[[#This Row],[Actual período]]<GastosOperativos[[#This Row],[Antes período]],GastosOperativos[[#This Row],[Antes período]]<0),-((GastosOperativos[[#This Row],[Actual período]]/GastosOperativos[[#This Row],[Antes período]])-1),(GastosOperativos[[#This Row],[Actual período]]/GastosOperativos[[#This Row],[Antes período]])-1))),"-") -> 0.00% | J11: =IFERROR(IF(GastosOperativos[[#This Row],[Presupuesto]]=GastosOperativos[[#This Row],[Actual período]],0,IF(GastosOperativos[[#This Row],[Actual período]]>GastosOperativos[[#This Row],[Presupuesto]],ABS((GastosOperativos[[#This Row],[Actual período]]/GastosOperativos[[#This Row],[Presupuesto]])-1),IF(AND(GastosOperativos[[#This Row],[Actual período]]<GastosOperativos[[#This Row],[Presupuesto]],GastosOperativos[[#This Row],[Presupuesto]]<0),-((GastosOperativos[[#This Row],[Actual período]]/GastosOperativos[[#This Row],[Presupuesto]])-1),(GastosOperativos[[#This Row],[Actual período]]/GastosOperativos[[#This Row],[Presupuesto]])-1))),"-") -> 0.00%
C12: Investigación y desarrollo | D12: Patentes | H12: =IFERROR(IF(Ingresos_Por_Ventas=0,"-",GastosOperativos[[#This Row],[Actual período]]/Ingresos_Por_Ventas),"-") -> 0.00% | I12: =IFERROR(IF(GastosOperativos[[#This Row],[Antes período]]=GastosOperativos[[#This Row],[Actual período]],0,IF(GastosOperativos[[#This Row],[Actual período]]>GastosOperativos[[#This Row],[Antes período]],ABS((GastosOperativos[[#This Row],[Actual período]]/GastosOperativos[[#This Row],[Antes período]])-1),IF(AND(GastosOperativos[[#This Row],[Actual período]]<GastosOperativos[[#This Row],[Antes período]],GastosOperativos[[#This Row],[Antes período]]<0),-((GastosOperativos[[#This Row],[Actual período]]/GastosOperativos[[#This Row],[Antes período]])-1),(GastosOperativos[[#This Row],[Actual período]]/GastosOperativos[[#This Row],[Antes período]])-1))),"-") -> 0.00% | J12: =IFERROR(IF(GastosOperativos[[#This Row],[Presupuesto]]=GastosOperativos[[#This Row],[Actual período]],0,IF(GastosOperativos[[#This Row],[Actual período]]>GastosOperativos[[#This Row],[Presupuesto]],ABS((GastosOperativos[[#This Row],[Actual período]]/GastosOperativos[[#This Row],[Presupuesto]])-1),IF(AND(GastosOperativos[[#This Row],[Actual período]]<GastosOperativos[[#This Row],[Presupuesto]],GastosOperativos[[#This Row],[Presupuesto]]<0),-((GastosOperativos[[#This Row],[Actual período]]/GastosOperativos[[#This Row],[Presupuesto]])-1),(GastosOperativos[[#This Row],[Actual período]]/GastosOperativos[[#This Row],[Presupuesto]])-1))),"-") -> 0.00%
C13: Investigación y desarrollo | D13: Otros gastos (especifique) | H13: =IFERROR(IF(Ingresos_Por_Ventas=0,"-",GastosOperativos[[#This Row],[Actual período]]/Ingresos_Por_Ventas),"-") -> 0.00% | I13: =IFERROR(IF(GastosOperativos[[#This Row],[Antes período]]=GastosOperativos[[#This Row],[Actual período]],0,IF(GastosOperativos[[#This Row],[Actual período]]>GastosOperativos[[#This Row],[Antes período]],ABS((GastosOperativos[[#This Row],[Actual período]]/GastosOperativos[[#This Row],[Antes período]])-1),IF(AND(GastosOperativos[[#This Row],[Actual período]]<GastosOperativos[[#This Row],[Antes período]],GastosOperativos[[#This Row],[Antes período]]<0),-((GastosOperativos[[#This Row],[Actual período]]/GastosOperativos[[#This Row],[Antes período]])-1),(GastosOperativos[[#This Row],[Actual período]]/GastosOperativos[[#This Row],[Antes período]])-1))),"-") -> 0.00% | J13: =IFERROR(IF(GastosOperativos[[#This Row],[Presupuesto]]=GastosOperativos[[#This Row],[Actual período]],0,IF(GastosOperativos[[#This Row],[Actual período]]>GastosOperativos[[#This Row],[Presupuesto]],ABS((GastosOperativos[[#This Row],[Actual período]]/GastosOperativos[[#This Row],[Presupuesto]])-1),IF(AND(GastosOperativos[[#This Row],[Actual período]]<GastosOperativos[[#This Row],[Presupuesto]],GastosOperativos[[#This Row],[Presupuesto]]<0),-((GastosOperativos[[#This Row],[Actual período]]/GastosOperativos[[#This Row],[Presupuesto]])-1),(GastosOperativos[[#This Row],[Actual período]]/GastosOperativos[[#This Row],[Presupuesto]])-1))),"-") -> 0.00%
C14: Investigación y desarrollo | D14: Otros gastos (especifique) | H14: =IFERROR(IF(Ingresos_Por_Ventas=0,"-",GastosOperativos[[#This Row],[Actual período]]/Ingresos_Por_Ventas),"-") -> 0.00% | I14: =IFERROR(IF(GastosOperativos[[#This Row],[Antes período]]=GastosOperativos[[#This Row],[Actual período]],0,IF(GastosOperativos[[#This Row],[Actual período]]>GastosOperativos[[#This Row],[Antes período]],ABS((GastosOperativos[[#This Row],[Actual período]]/GastosOperativos[[#This Row],[Antes período]])-1),IF(AND(GastosOperativos[[#This Row],[Actual período]]<GastosOperativos[[#This Row],[Antes período]],GastosOperativos[[#This Row],[Antes período]]<0),-((GastosOperativos[[#This Row],[Actual período]]/GastosOperativos[[#This Row],[Antes período]])-1),(GastosOperativos[[#This Row],[Actual período]]/GastosOperativos[[#This Row],[Antes período]])-1))),"-") -> 0.00% | J14: =IFERROR(IF(GastosOperativos[[#This Row],[Presupuesto]]=GastosOperativos[[#This Row],[Actual período]],0,IF(GastosOperativos[[#This Row],[Actual período]]>GastosOperativos[[#This Row],[Presupuesto]],ABS((GastosOperativos[[#This Row],[Actual período]]/GastosOperativos[[#This Row],[Presupuesto]])-1),IF(AND(GastosOperativos[[#This Row],[Actual período]]<GastosOperativos[[#This Row],[Presupuesto]],GastosOperativos[[#This Row],[Presupuesto]]<0),-((GastosOperativos[[#This Row],[Actual período]]/GastosOperativos[[#This Row],[Presupuesto]])-1),(GastosOperativos[[#This Row],[Actual período]]/GastosOperativos[[#This Row],[Presupuesto]])-1))),"-") -> 0.00%
C15: Generales y administrativos | D15: Salarios y sueldos | H15: =IFERROR(IF(Ingresos_Por_Ventas=0,"-",GastosOperativos[[#This Row],[Actual período]]/Ingresos_Por_Ventas),"-") -> 0.00% | I15: =IFERROR(IF(GastosOperativos[[#This Row],[Antes período]]=GastosOperativos[[#This Row],[Actual período]],0,IF(GastosOperativos[[#This Row],[Actual período]]>GastosOperativos[[#This Row],[Antes período]],ABS((GastosOperativos[[#This Row],[Actual período]]/GastosOperativos[[#This Row],[Antes período]])-1),IF(AND(GastosOperativos[[#This Row],[Actual período]]<GastosOperativos[[#This Row],[Antes período]],GastosOperativos[[#This Row],[Antes período]]<0),-((GastosOperativos[[#This Row],[Actual período]]/GastosOperativos[[#This Row],[Antes período]])-1),(GastosOperativos[[#This Row],[Actual período]]/GastosOperativos[[#This Row],[Antes período]])-1))),"-") -> 0.00% | J15: =IFERROR(IF(GastosOperativos[[#This Row],[Presupuesto]]=GastosOperativos[[#This Row],[Actual período]],0,IF(GastosOperativos[[#This Row],[Actual período]]>GastosOperativos[[#This Row],[Presupuesto]],ABS((GastosOperativos[[#This Row],[Actual período]]/GastosOperativos[[#This Row],[Presupuesto]])-1),IF(AND(GastosOperativos[[#This Row],[Actual período]]<GastosOperativos[[#This Row],[Presupuesto]],GastosOperativos[[#This Row],[Presupuesto]]<0),-((GastosOperativos[[#This Row],[Actual período]]/GastosOperativos[[#This Row],[Presupuesto]])-1),(GastosOperativos[[#This Row],[Actual período]]/GastosOperativos[[#This Row],[Presupuesto]])-1))),"-") -> 0.00%
C16: Generales y administrativos | D16: Servicios externos | H16: =IFERROR(IF(Ingresos_Por_Ventas=0,"-",GastosOperativos[[#This Row],[Actual período]]/Ingresos_Por_Ventas),"-") -> 0.00% | I16: =IFERROR(IF(GastosOperativos[[#This Row],[Antes período]]=GastosOperativos[[#This Row],[Actual período]],0,IF(GastosOperativos[[#This Row],[Actual período]]>GastosOperativos[[#This Row],[Antes período]],ABS((GastosOperativos[[#This Row],[Actual período]]/GastosOperativos[[#This Row],[Antes período]])-1),IF(AND(GastosOperativos[[#This Row],[Actual período]]<GastosOperativos[[#This Row],[Antes período]],GastosOperativos[[#This Row],[Antes período]]<0),-((GastosOperativos[[#This Row],[Actual período]]/GastosOperativos[[#This Row],[Antes período]])-1),(GastosOperativos[[#This Row],[Actual período]]/GastosOperativos[[#This Row],[Antes período]])-1))),"-") -> 0.00% | J16: =IFERROR(IF(GastosOperativos[[#This Row],[Presupuesto]]=GastosOperativos[[#This Row],[Actual período]],0,IF(GastosOperativos[[#This Row],[Actual período]]>GastosOperativos[[#This Row],[Presupuesto]],ABS((GastosOperativos[[#This Row],[Actual período]]/GastosOperativos[[#This Row],[Presupuesto]])-1),IF(AND(GastosOperativos[[#This Row],[Actual período]]<GastosOperativos[[#This Row],[Presupuesto]],GastosOperativos[[#This Row],[Presupuesto]]<0),-((GastosOperativos[[#This Row],[Actual período]]/GastosOperativos[[#This Row],[Presupuesto]])-1),(GastosOperativos[[#This Row],[Actual período]]/GastosOperativos[[#This Row],[Presupuesto]])-1))),"-") -> 0.00%
C17: Generales y administrativos | D17: Suministros | H17: =IFERROR(IF(Ingresos_Por_Ventas=0,"-",GastosOperativos[[#This Row],[Actual período]]/Ingresos_Por_Ventas),"-") -> 0.00% | I17: =IFERROR(IF(GastosOperativos[[#This Row],[Antes período]]=GastosOperativos[[#This Row],[Actual período]],0,IF(GastosOperativos[[#This Row],[Actual período]]>GastosOperativos[[#This Row],[Antes período]],ABS((GastosOperativos[[#This Row],[Actual período]]/GastosOperativos[[#This Row],[Antes período]])-1),IF(AND(GastosOperativos[[#This Row],[Actual período]]<GastosOperativos[[#This Row],[Antes período]],GastosOperativos[[#This Row],[Antes período]]<0),-((GastosOperativos[[#This Row],[Actual período]]/GastosOperativos[[#This Row],[Antes período]])-1),(GastosOperativos[[#This Row],[Actual período]]/GastosOperativos[[#This Row],[Antes período]])-1))),"-") -> 0.00% | J17: =IFERROR(IF(GastosOperativos[[#This Row],[Presupuesto]]=GastosOperativos[[#This Row],[Actual período]],0,IF(GastosOperativos[[#This Row],[Actual período]]>GastosOperativos[[#This Row],[Presupuesto]],ABS((GastosOperativos[[#This Row],[Actual período]]/GastosOperativos[[#This Row],[Presupuesto]])-1),IF(AND(GastosOperativos[[#This Row],[Actual período]]<GastosOperativos[[#This Row],[Presupuesto]],GastosOperativos[[#This Row],[Presupuesto]]<0),-((GastosOperativos[[#This Row],[Actual período]]/GastosOperativos[[#This Row],[Presupuesto]])-1),(GastosOperativos[[#This Row],[Actual período]]/GastosOperativos[[#This Row],[Presupuesto]])-1))),"-") -> 0.00%
C18: Generales y administrativos | D18: Comidas y entretenimiento | H18: =IFERROR(IF(Ingresos_Por_Ventas=0,"-",GastosOperativos[[#This Row],[Actual período]]/Ingresos_Por_Ventas),"-") -> 0.00% | I18: =IFERROR(IF(GastosOperativos[[#This Row],[Antes período]]=GastosOperativos[[#This Row],[Actual período]],0,IF(GastosOperativos[[#This Row],[Actual período]]>GastosOperativos[[#This Row],[Antes período]],ABS((GastosOperativos[[#This Row],[Actual período]]/GastosOperativos[[#This Row],[Antes período]])-1),IF(AND(GastosOperativos[[#This Row],[Actual período]]<GastosOperativos[[#This Row],[Antes período]],GastosOperativos[[#This Row],[Antes período]]<0),-((GastosOperativos[[#This Row],[Actual período]]/GastosOperativos[[#This Row],[Antes período]])-1),(GastosOperativos[[#This Row],[Actual período]]/GastosOperativos[[#This Row],[Antes período]])-1))),"-") -> 0.00% | J18: =IFERROR(IF(GastosOperativos[[#This Row],[Presupuesto]]=GastosOperativos[[#This Row],[Actual período]],0,IF(GastosOperativos[[#This Row],[Actual período]]>GastosOperativos[[#This Row],[Presupuesto]],ABS((GastosOperativos[[#This Row],[Actual período]]/GastosOperativos[[#This Row],[Presupuesto]])-1),IF(AND(GastosOperativos[[#This Row],[Actual período]]<GastosOperativos[[#This Row],[Presupuesto]],GastosOperativos[[#This Row],[Presupuesto]]<0),-((GastosOperativos[[#This Row],[Actual período]]/GastosOperativos[[#This Row],[Presupuesto]])-1),(GastosOperativos[[#This Row],[Actual período]]/GastosOperativos[[#This Row],[Presupuesto]])-1))),"-") -> 0.00%
C19: Generales y administrativos | D19: Alquiler | H19: =IFERROR(IF(Ingresos_Por_Ventas=0,"-",GastosOperativos[[#This Row],[Actual período]]/Ingresos_Por_Ventas),"-") -> 0.00% | I19: =IFERROR(IF(GastosOperativos[[#This Row],[Antes período]]=GastosOperativos[[#This Row],[Actual período]],0,IF(GastosOperativos[[#This Row],[Actual período]]>GastosOperativos[[#This Row],[Antes período]],ABS((GastosOperativos[[#This Row],[Actual período]]/GastosOperativos[[#This Row],[Antes período]])-1),IF(AND(GastosOperativos[[#This Row],[Actual período]]<GastosOperativos[[#This Row],[Antes período]],GastosOperativos[[#This Row],[Antes período]]<0),-((GastosOperativos[[#This Row],[Actual período]]/GastosOperativos[[#This Row],[Antes período]])-1),(GastosOperativos[[#This Row],[Actual período]]/GastosOperativos[[#This Row],[Antes período]])-1))),"-") -> 0.00% | J19: =IFERROR(IF(GastosOperativos[[#This Row],[Presupuesto]]=GastosOperativos[[#This Row],[Actual período]],0,IF(GastosOperativos[[#This Row],[Actual período]]>GastosOperativos[[#This Row],[Presupuesto]],ABS((GastosOperativos[[#This Row],[Actual período]]/GastosOperativos[[#This Row],[Presupuesto]])-1),IF(AND(GastosOperativos[[#This Row],[Actual período]]<GastosOperativos[[#This Row],[Presupuesto]],GastosOperativos[[#This Row],[Presupuesto]]<0),-((GastosOperativos[[#This Row],[Actual período]]/GastosOperativos[[#This Row],[Presupuesto]])-1),(GastosOperativos[[#This Row],[Actual período]]/GastosOperativos[[#This Row],[Presupuesto]])-1))),"-") -> 0.00%
C20: Generales y administrativos | D20: Teléfono | H20: =IFERROR(IF(Ingresos_Por_Ventas=0,"-",GastosOperativos[[#This Row],[Actual período]]/Ingresos_Por_Ventas),"-") -> 0.00% | I20: =IFERROR(IF(GastosOperativos[[#This Row],[Antes período]]=GastosOperativos[[#This Row],[Actual período]],0,IF(GastosOperativos[[#This Row],[Actual período]]>GastosOperativos[[#This Row],[Antes período]],ABS((GastosOperativos[[#This Row],[Actual período]]/GastosOperativos[[#This Row],[Antes período]])-1),IF(AND(GastosOperativos[[#This Row],[Actual período]]<GastosOperativos[[#This Row],[Antes período]],GastosOperativos[[#This Row],[Antes período]]<0),-((GastosOperativos[[#This Row],[Actual período]]/GastosOperativos[[#This Row],[Antes período]])-1),(GastosOperativos[[#This Row],[Actual período]]/GastosOperativos[[#This Row],[Antes período]])-1))),"-") -> 0.00% | J20: =IFERROR(IF(GastosOperativos[[#This Row],[Presupuesto]]=GastosOperativos[[#This Row],[Actual período]],0,IF(GastosOperativos[[#This Row],[Actual período]]>GastosOperativos[[#This Row],[Presupuesto]],ABS((GastosOperativos[[#This Row],[Actual período]]/GastosOperativos[[#This Row],[Presupuesto]])-1),IF(AND(GastosOperativos[[#This Row],[Actual período]]<GastosOperativos[[#This Row],[Presupuesto]],GastosOperativos[[#This Row],[Presupuesto]]<0),-((GastosOperativos[[#This Row],[Actual período]]/GastosOperativos[[#This Row],[Presupuesto]])-1),(GastosOperativos[[#This Row],[Actual período]]/GastosOperativos[[#This Row],[Presupuesto]])-1))),"-") -> 0.00%
C21: Generales y administrativos | D21: Servicios públicos | H21: =IFERROR(IF(Ingresos_Por_Ventas=0,"-",GastosOperativos[[#This Row],[Actual período]]/Ingresos_Por_Ventas),"-") -> 0.00% | I21: =IFERROR(IF(GastosOperativos[[#This Row],[Antes período]]=GastosOperativos[[#This Row],[Actual período]],0,IF(GastosOperativos[[#This Row],[Actual período]]>GastosOperativos[[#This Row],[Antes período]],ABS((GastosOperativos[[#This Row],[Actual período]]/GastosOperativos[[#This Row],[Antes período]])-1),IF(AND(GastosOperativos[[#This Row],[Actual período]]<GastosOperativos[[#This Row],[Antes período]],GastosOperativos[[#This Row],[Antes período]]<0),-((GastosOperativos[[#This Row],[Actual período]]/GastosOperativos[[#This Row],[Antes período]])-1),(GastosOperativos[[#This Row],[Actual período]]/GastosOperativos[[#This Row],[Antes período]])-1))),"-") -> 0.00% | J21: =IFERROR(IF(GastosOperativos[[#This Row],[Presupuesto]]=GastosOperativos[[#This Row],[Actual período]],0,IF(GastosOperativos[[#This Row],[Actual período]]>GastosOperativos[[#This Row],[Presupuesto]],ABS((GastosOperativos[[#This Row],[Actual período]]/GastosOperativos[[#This Row],[Presupuesto]])-1),IF(AND(GastosOperativos[[#This Row],[Actual período]]<GastosOperativos[[#This Row],[Presupuesto]],GastosOperativos[[#This Row],[Presupuesto]]<0),-((GastosOperativos[[#This Row],[Actual período]]/GastosOperativos[[#This Row],[Presupuesto]])-1),(GastosOperativos[[#This Row],[Actual período]]/GastosOperativos[[#This Row],[Presupuesto]])-1))),"-") -> 0.00%
C22: Generales y administrativos | D22: Depreciación | H22: =IFERROR(IF(Ingresos_Por_Ventas=0,"-",GastosOperativos[[#This Row],[Actual período]]/Ingresos_Por_Ventas),"-") -> 0.00% | I22: =IFERROR(IF(GastosOperativos[[#This Row],[Antes período]]=GastosOperativos[[#This Row],[Actual período]],0,IF(GastosOperativos[[#This Row],[Actual período]]>GastosOperativos[[#This Row],[Antes período]],ABS((GastosOperativos[[#This Row],[Actual período]]/GastosOperativos[[#This Row],[Antes período]])-1),IF(AND(GastosOperativos[[#This Row],[Actual período]]<GastosOperativos[[#This Row],[Antes período]],GastosOperativos[[#This Row],[Antes período]]<0),-((GastosOperativos[[#This Row],[Actual período]]/GastosOperativos[[#This Row],[Antes período]])-1),(GastosOperativos[[#This Row],[Actual período]]/GastosOperativos[[#This Row],[Antes período]])-1))),"-") -> 0.00% | J22: =IFERROR(IF(GastosOperativos[[#This Row],[Presupuesto]]=GastosOperativos[[#This Row],[Actual período]],0,IF(GastosOperativos[[#This Row],[Actual período]]>GastosOperativos[[#This Row],[Presupuesto]],ABS((GastosOperativos[[#This Row],[Actual período]]/GastosOperativos[[#This Row],[Presupuesto]])-1),IF(AND(GastosOperativos[[#This Row],[Actual período]]<GastosOperativos[[#This Row],[Presupuesto]],GastosOperativos[[#This Row],[Presupuesto]]<0),-((GastosOperativos[[#This Row],[Actual período]]/GastosOperativos[[#This Row],[Presupuesto]])-1),(GastosOperativos[[#This Row],[Actual período]]/GastosOperativos[[#This Row],[Presupuesto]])-1))),"-") -> 0.00%
C23: Generales y administrativos | D23: Seguro | H23: =IFERROR(IF(Ingresos_Por_Ventas=0,"-",GastosOperativos[[#This Row],[Actual período]]/Ingresos_Por_Ventas),"-") -> 0.00% | I23: =IFERROR(IF(GastosOperativos[[#This Row],[Antes período]]=GastosOperativos[[#This Row],[Actual período]],0,IF(GastosOperativos[[#This Row],[Actual período]]>GastosOperativos[[#This Row],[Antes período]],ABS((GastosOperativos[[#This Row],[Actual período]]/GastosOperativos[[#This Row],[Antes período]])-1),IF(AND(GastosOperativos[[#This Row],[Actual período]]<GastosOperativos[[#This Row],[Antes período]],GastosOperativos[[#This Row],[Antes período]]<0),-((GastosOperativos[[#This Row],[Actual período]]/GastosOperativos[[#This Row],[Antes período]])-1),(GastosOperativos[[#This Row],[Actual período]]/GastosOperativos[[#This Row],[Antes período]])-1))),"-") -> 0.00% | J23: =IFERROR(IF(GastosOperativos[[#This Row],[Presupuesto]]=GastosOperativos[[#This Row],[Actual período]],0,IF(GastosOperativos[[#This Row],[Actual período]]>GastosOperativos[[#This Row],[Presupuesto]],ABS((GastosOperativos[[#This Row],[Actual período]]/GastosOperativos[[#This Row],[Presupuesto]])-1),IF(AND(GastosOperativos[[#This Row],[Actual período]]<GastosOperativos[[#This Row],[Presupuesto]],GastosOperativos[[#This Row],[Presupuesto]]<0),-((GastosOperativos[[#This Row],[Actual período]]/GastosOperativos[[#This Row],[Presupuesto]])-1),(GastosOperativos[[#This Row],[Actual período]]/GastosOperativos[[#This Row],[Presupuesto]])-1))),"-") -> 0.00%
C24: Generales y administrativos | D24: Reparaciones y mantenimiento | H24: =IFERROR(IF(Ingresos_Por_Ventas=0,"-",GastosOperativos[[#This Row],[Actual período]]/Ingresos_Por_Ventas),"-") -> 0.00% | I24: =IFERROR(IF(GastosOperativos[[#This Row],[Antes período]]=GastosOperativos[[#This Row],[Actual período]],0,IF(GastosOperativos[[#This Row],[Actual período]]>GastosOperativos[[#This Row],[Antes período]],ABS((GastosOperativos[[#This Row],[Actual período]]/GastosOperativos[[#This Row],[Antes período]])-1),IF(AND(GastosOperativos[[#This Row],[Actual período]]<GastosOperativos[[#This Row],[Antes período]],GastosOperativos[[#This Row],[Antes período]]<0),-((GastosOperativos[[#This Row],[Actual período]]/GastosOperativos[[#This Row],[Antes período]])-1),(GastosOperativos[[#This Row],[Actual período]]/GastosOperativos[[#This Row],[Antes período]])-1))),"-") -> 0.00% | J24: =IFERROR(IF(GastosOperativos[[#This Row],[Presupuesto]]=GastosOperativos[[#This Row],[Actual período]],0,IF(GastosOperativos[[#This Row],[Actual período]]>GastosOperativos[[#This Row],[Presupuesto]],ABS((GastosOperativos[[#This Row],[Actual período]]/GastosOperativos[[#This Row],[Presupuesto]])-1),IF(AND(GastosOperativos[[#This Row],[Actual período]]<GastosOperativos[[#This Row],[Presupuesto]],GastosOperativos[[#This Row],[Presupuesto]]<0),-((GastosOperativos[[#This Row],[Actual período]]/GastosOperativos[[#This Row],[Presupuesto]])-1),(GastosOperativos[[#This Row],[Actual período]]/GastosOperativos[[#This Row],[Presupuesto]])-1))),"-") -> 0.00%
C25: Generales y administrativos | D25: Otros gastos (especifique) | H25: =IFERROR(IF(Ingresos_Por_Ventas=0,"-",GastosOperativos[[#This Row],[Actual período]]/Ingresos_Por_Ventas),"-") -> 0.00% | I25: =IFERROR(IF(GastosOperativos[[#This Row],[Antes período]]=GastosOperativos[[#This Row],[Actual período]],0,IF(GastosOperativos[[#This Row],[Actual período]]>GastosOperativos[[#This Row],[Antes período]],ABS((GastosOperativos[[#This Row],[Actual período]]/GastosOperativos[[#This Row],[Antes período]])-1),IF(AND(GastosOperativos[[#This Row],[Actual período]]<GastosOperativos[[#This Row],[Antes período]],GastosOperativos[[#This Row],[Antes período]]<0),-((GastosOperativos[[#This Row],[Actual período]]/GastosOperativos[[#This Row],[Antes período]])-1),(GastosOperativos[[#This Row],[Actual período]]/GastosOperativos[[#This Row],[Antes período]])-1))),"-") -> 0.00% | J25: =IFERROR(IF(GastosOperativos[[#This Row],[Presupuesto]]=GastosOperativos[[#This Row],[Actual período]],0,IF(GastosOperativos[[#This Row],[Actual período]]>GastosOperativos[[#This Row],[Presupuesto]],ABS((GastosOperativos[[#This Row],[Actual período]]/GastosOperativos[[#This Row],[Presupuesto]])-1),IF(AND(GastosOperativos[[#This Row],[Actual período]]<GastosOperativos[[#This Row],[Presupuesto]],GastosOperativos[[#This Row],[Presupuesto]]<0),-((GastosOperativos[[#This Row],[Actual período]]/GastosOperativos[[#This Row],[Presupuesto]])-1),(GastosOperativos[[#This Row],[Actual período]]/GastosOperativos[[#This Row],[Presupuesto]])-1))),"-") -> 0.00%
C26: Generales y administrativos | D26: Otros gastos (especificar) | H26: =IFERROR(IF(Ingresos_Por_Ventas=0,"-",GastosOperativos[[#This Row],[Actual período]]/Ingresos_Por_Ventas),"-") -> 0.00% | I26: =IFERROR(IF(GastosOperativos[[#This Row],[Antes período]]=GastosOperativos[[#This Row],[Actual período]],0,IF(GastosOperativos[[#This Row],[Actual período]]>GastosOperativos[[#This Row],[Antes período]],ABS((GastosOperativos[[#This Row],[Actual período]]/GastosOperativos[[#This Row],[Antes período]])-1),IF(AND(GastosOperativos[[#This Row],[Actual período]]<GastosOperativos[[#This Row],[Antes período]],GastosOperativos[[#This Row],[Antes período]]<0),-((GastosOperativos[[#This Row],[Actual período]]/GastosOperativos[[#This Row],[Antes período]])-1),(GastosOperativos[[#This Row],[Actual período]]/GastosOperativos[[#This Row],[Antes período]])-1))),"-") -> 0.00% | J26: =IFERROR(IF(GastosOperativos[[#This Row],[Presupuesto]]=GastosOperativos[[#This Row],[Actual período]],0,IF(GastosOperativos[[#This Row],[Actual período]]>GastosOperativos[[#This Row],[Presupuesto]],ABS((GastosOperativos[[#This Row],[Actual período]]/GastosOperativos[[#This Row],[Presupuesto]])-1),IF(AND(GastosOperativos[[#This Row],[Actual período]]<GastosOperativos[[#This Row],[Presupuesto]],GastosOperativos[[#This Row],[Presupuesto]]<0),-((GastosOperativos[[#This Row],[Actual período]]/GastosOperativos[[#This Row],[Presupuesto]])-1),(GastosOperativos[[#This Row],[Actual período]]/GastosOperativos[[#This Row],[Presupuesto]])-1))),"-") -> 0.00%
C27: Gastos operativos totales | E27: =SUBTOTAL(109,GastosOperativos[Antes período]) -> 30.00 € | F27: =SUBTOTAL(109,GastosOperativos[Presupuesto]) -> 35.00 € | G27: =SUBTOTAL(109,GastosOperativos[Actual período]) -> 45.00 € | H27: =SUBTOTAL(109,GastosOperativos[Período actual como % de ventas]) -> 45.00% | I27: =SUBTOTAL(109,GastosOperativos[Porcentaje de cambio desde período anterior]) -> 50.00% | J27: =SUBTOTAL(109,GastosOperativos[% de cambio del presupuesto]) -> 28.57%

Sheet Impuestos
C3: =Título_Libro -> BALANCE DE PÉRDIDAS Y GANANCIAS | I3: Impuestos
C4: =Nombre_de_la_compañía -> CELULAR SATCOM | I4: Expresado en millares | J4: =IFERROR(Impuestos[[#Totals],[Actual período]],"-") -> 12.00 €
C7: Tipo | D7: Descripción | E7: Antes período | F7: Presupuesto | G7: Actual período | H7: Período actual como % de ventas | I7: Porcentaje de cambio desde el período anterior | J7: % de cambio del presupuesto
C8: Impuestos | D8: Impuestos sobre la renta | E8: 10.00 € | F8: 12.00 € | G8: 12.00 € | H8: =IFERROR(IF(Ingresos_Por_Ventas=0,"-",Impuestos[[#This Row],[Actual período]]/Ingresos_Por_Ventas),"-") -> 12.00% | I8: =IFERROR(IF(Impuestos[[#This Row],[Antes período]]=Impuestos[[#This Row],[Actual período]],0,IF(Impuestos[[#This Row],[Actual período]]>Impuestos[[#This Row],[Antes período]],ABS((Impuestos[[#This Row],[Actual período]]/Impuestos[[#This Row],[Antes período]])-1),IF(AND(Impuestos[[#This Row],[Actual período]]<Impuestos[[#This Row],[Antes período]],Impuestos[[#This Row],[Antes período]]<0),-((Impuestos[[#This Row],[Actual período]]/Impuestos[[#This Row],[Antes período]])-1),(Impuestos[[#This Row],[Actual período]]/Impuestos[[#This Row],[Antes período]])-1))),"-") -> 20.00% | J8: =IFERROR(IF(Impuestos[[#This Row],[Presupuesto]]=Impuestos[[#This Row],[Actual período]],0,IF(Impuestos[[#This Row],[Actual período]]>Impuestos[[#This Row],[Presupuesto]],ABS((Impuestos[[#This Row],[Actual período]]/Impuestos[[#This Row],[Presupuesto]])-1),IF(AND(Impuestos[[#This Row],[Actual período]]<Impuestos[[#This Row],[Presupuesto]],Impuestos[[#This Row],[Presupuesto]]<0),-((Impuestos[[#This Row],[Actual período]]/Impuestos[[#This Row],[Presupuesto]])-1),(Impuestos[[#This Row],[Actual período]]/Impuestos[[#This Row],[Presupuesto]])-1))),"-") -> 0.00%
C9: Impuestos | D9: Impuestos sobre nóminas | H9: =IFERROR(IF(Ingresos_Por_Ventas=0,"-",Impuestos[[#This Row],[Actual período]]/Ingresos_Por_Ventas),"-") -> 0.00% | I9: =IFERROR(IF(Impuestos[[#This Row],[Antes período]]=Impuestos[[#This Row],[Actual período]],0,IF(Impuestos[[#This Row],[Actual período]]>Impuestos[[#This Row],[Antes período]],ABS((Impuestos[[#This Row],[Actual período]]/Impuestos[[#This Row],[Antes período]])-1),IF(AND(Impuestos[[#This Row],[Actual período]]<Impuestos[[#This Row],[Antes período]],Impuestos[[#This Row],[Antes período]]<0),-((Impuestos[[#This Row],[Actual período]]/Impuestos[[#This Row],[Antes período]])-1),(Impuestos[[#This Row],[Actual período]]/Impuestos[[#This Row],[Antes período]])-1))),"-") -> 0.00% | J9: =IFERROR(IF(Impuestos[[#This Row],[Presupuesto]]=Impuestos[[#This Row],[Actual período]],0,IF(Impuestos[[#This Row],[Actual período]]>Impuestos[[#This Row],[Presupuesto]],ABS((Impuestos[[#This Row],[Actual período]]/Impuestos[[#This Row],[Presupuesto]])-1),IF(AND(Impuestos[[#This Row],[Actual período]]<Impuestos[[#This Row],[Presupuesto]],Impuestos[[#This Row],[Presupuesto]]<0),-((Impuestos[[#This Row],[Actual período]]/Impuestos[[#This Row],[Presupuesto]])-1),(Impuestos[[#This Row],[Actual período]]/Impuestos[[#This Row],[Presupuesto]])-1))),"-") -> 0.00%
C10: Impuestos | D10: Impuestos sobre bienes inmuebles | H10: =IFERROR(IF(Ingresos_Por_Ventas=0,"-",Impuestos[[#This Row],[Actual período]]/Ingresos_Por_Ventas),"-") -> 0.00% | I10: =IFERROR(IF(Impuestos[[#This Row],[Antes período]]=Impuestos[[#This Row],[Actual período]],0,IF(Impuestos[[#This Row],[Actual período]]>Impuestos[[#This Row],[Antes período]],ABS((Impuestos[[#This Row],[Actual período]]/Impuestos[[#This Row],[Antes período]])-1),IF(AND(Impuestos[[#This Row],[Actual período]]<Impuestos[[#This Row],[Antes período]],Impuestos[[#This Row],[Antes período]]<0),-((Impuestos[[#This Row],[Actual período]]/Impuestos[[#This Row],[Antes período]])-1),(Impuestos[[#This Row],[Actual período]]/Impuestos[[#This Row],[Antes período]])-1))),"-") -> 0.00% | J10: =IFERROR(IF(Impuestos[[#This Row],[Presupuesto]]=Impuestos[[#This Row],[Actual período]],0,IF(Impuestos[[#This Row],[Actual período]]>Impuestos[[#This Row],[Presupuesto]],ABS((Impuestos[[#This Row],[Actual período]]/Impuestos[[#This Row],[Presupuesto]])-1),IF(AND(Impuestos[[#This Row],[Actual período]]<Impuestos[[#This Row],[Presupuesto]],Impuestos[[#This Row],[Presupuesto]]<0),-((Impuestos[[#This Row],[Actual período]]/Impuestos[[#This Row],[Presupuesto]])-1),(Impuestos[[#This Row],[Actual período]]/Impuestos[[#This Row],[Presupuesto]])-1))),"-") -> 0.00%
C11: Impuestos | D11: Otros impuestos (especifique) | H11: =IFERROR(IF(Ingresos_Por_Ventas=0,"-",Impuestos[[#This Row],[Actual período]]/Ingresos_Por_Ventas),"-") -> 0.00% | I11: =IFERROR(IF(Impuestos[[#This Row],[Antes período]]=Impuestos[[#This Row],[Actual período]],0,IF(Impuestos[[#This Row],[Actual período]]>Impuestos[[#This Row],[Antes período]],ABS((Impuestos[[#This Row],[Actual período]]/Impuestos[[#This Row],[Antes período]])-1),IF(AND(Impuestos[[#This Row],[Actual período]]<Impuestos[[#This Row],[Antes período]],Impuestos[[#This Row],[Antes período]]<0),-((Impuestos[[#This Row],[Actual período]]/Impuestos[[#This Row],[Antes período]])-1),(Impuestos[[#This Row],[Actual período]]/Impuestos[[#This Row],[Antes período]])-1))),"-") -> 0.00% | J11: =IFERROR(IF(Impuestos[[#This Row],[Presupuesto]]=Impuestos[[#This Row],[Actual período]],0,IF(Impuestos[[#This Row],[Actual período]]>Impuestos[[#This Row],[Presupuesto]],ABS((Impuestos[[#This Row],[Actual período]]/Impuestos[[#This Row],[Presupuesto]])-1),IF(AND(Impuestos[[#This Row],[Actual período]]<Impuestos[[#This Row],[Presupuesto]],Impuestos[[#This Row],[Presupuesto]]<0),-((Impuestos[[#This Row],[Actual período]]/Impuestos[[#This Row],[Presupuesto]])-1),(Impuestos[[#This Row],[Actual período]]/Impuestos[[#This Row],[Presupuesto]])-1))),"-") -> 0.00%
C12: Impuestos | D12: Otros impuestos (especifique) | H12: =IFERROR(IF(Ingresos_Por_Ventas=0,"-",Impuestos[[#This Row],[Actual período]]/Ingresos_Por_Ventas),"-") -> 0.00% | I12: =IFERROR(IF(Impuestos[[#This Row],[Antes período]]=Impuestos[[#This Row],[Actual período]],0,IF(Impuestos[[#This Row],[Actual período]]>Impuestos[[#This Row],[Antes período]],ABS((Impuestos[[#This Row],[Actual período]]/Impuestos[[#This Row],[Antes período]])-1),IF(AND(Impuestos[[#This Row],[Actual período]]<Impuestos[[#This Row],[Antes período]],Impuestos[[#This Row],[Antes período]]<0),-((Impuestos[[#This Row],[Actual período]]/Impuestos[[#This Row],[Antes período]])-1),(Impuestos[[#This Row],[Actual período]]/Impuestos[[#This Row],[Antes período]])-1))),"-") -> 0.00% | J12: =IFERROR(IF(Impuestos[[#This Row],[Presupuesto]]=Impuestos[[#This Row],[Actual período]],0,IF(Impuestos[[#This Row],[Actual período]]>Impuestos[[#This Row],[Presupuesto]],ABS((Impuestos[[#This Row],[Actual período]]/Impuestos[[#This Row],[Presupuesto]])-1),IF(AND(Impuestos[[#This Row],[Actual período]]<Impuestos[[#This Row],[Presupuesto]],Impuestos[[#This Row],[Presupuesto]]<0),-((Impuestos[[#This Row],[Actual período]]/Impuestos[[#This Row],[Presupuesto]])-1),(Impuestos[[#This Row],[Actual período]]/Impuestos[[#This Row],[Presupuesto]])-1))),"-") -> 0.00%
C13: Total de impuestos | E13: =SUBTOTAL(109,Impuestos[Antes período]) -> 10.00 € | F13: =SUBTOTAL(109,Impuestos[Presupuesto]) -> 12.00 € | G13: =SUBTOTAL(109,Impuestos[Actual período]) -> 12.00 € | H13: =IFERROR(SUBTOTAL(109,Impuestos[Período actual como % de ventas]),"-") -> 12.00% | I13: =SUBTOTAL(109,Impuestos[Porcentaje de cambio desde el período anterior]) -> 20.00% | J13: =SUBTOTAL(109,Impuestos[% de cambio del presupuesto]) -> 0.00%

Sheet Categorías
C3: =Título_Libro -> BALANCE DE PÉRDIDAS Y GANANCIAS
C4: =Nombre_de_la_compañía -> CELULAR SATCOM
C6: Categorías
C7: Ingresos por ventas
C8: Costo de ventas
C9: Ingresos
C10: Ventas y marketing
C11: Investigación y desarrollo
C12: Generales y administrativos
C13: Impuestos
